fUST/lending_fUST_20250221
["ID","MTS","AMOUNT","RATE_DAILY","PERIOD"]
[353847013,1740091835136,-500.0,0.00013698,2]
[353847014,1740091835145,-584.17405527,0.00013698,2]
[353847015,1740091835154,-500.0,0.00013698,2]
[353847016,1740091835163,-257.37554615,0.00013698,2]
[353847017,1740091835172,-500.0,0.00013698,2]
[353847018,1740091835182,-500.0,0.00013698,2]
[353847019,1740091835191,-500.0,0.00013698,2]
[353847020,1740091835200,-500.0,0.00013698,2]
[353847021,1740091835209,-500.0,0.00013698,2]
[353847022,1740091835219,-500.0,0.00013698,2]
[353847023,1740091835228,-500.0,0.00013698,2]
[353847024,1740091835237,-500.0,0.00013698,2]
[353847025,1740091835246,-546.38,0.00013698,2]
[353847026,1740091835256,-500.0,0.00013698,2]
[353847027,1740091835266,-500.0,0.00013698,2]
[353847028,1740091835276,-500.0,0.00013698,2]
[353847029,1740091835285,-500.0,0.00013698,2]
[353847030,1740091835295,-500.0,0.00013698,2]
[353847031,1740091835305,-500.0,0.00013698,2]
[353847032,1740091835314,-500.0,0.00013698,2]
[353847033,1740091835324,-8340.72,0.00013698,2]
[353847034,1740091835334,-500.0,0.00013698,2]
[353847035,1740091835343,-500.0,0.00013698,2]
[353847036,1740091835353,-500.0,0.00013698,2]
[353847037,1740091835362,-500.0,0.00013698,2]
[353847038,1740091835371,-500.0,0.00013698,2]
[353847039,1740091835380,-505.591888,0.00013698,2]
[353847040,1740091835390,-500.0,0.00013698,2]
[353847041,1740091835399,-500.0,0.00013698,2]
[353847042,1740091835409,-4502.58,0.00013698,2]
[353847043,1740091835419,-500.0,0.00013698,2]
[353847044,1740091835428,-500.0,0.00013698,2]
[353847045,1740091835438,-500.0,0.00013698,2]
[353847046,1740091835448,-245.46080476,0.00013698,2]
[353847047,1740091835457,-500.0,0.00013698,2]
[353847048,1740091835467,-500.0,0.00013698,2]
[353847049,1740091835477,-500.0,0.00013698,2]
[353847050,1740091835486,-263.40521064,0.00013698,2]
[353847051,1740091835496,-886.79,0.00013698,2]
[353847052,1740091835505,-1849.94,0.00013698,2]
[353847053,1740091835514,-500.0,0.00013698,2]
[353847054,1740091835524,-1370.08,0.00013698,2]
[353847055,1740091835533,-500.0,0.00013698,2]
[353847056,1740091835543,-500.0,0.00013698,2]
[353847057,1740091835552,-618.43925961,0.00013698,2]
[353847058,1740091835562,-1573.46,0.00013698,2]
[353847059,1740091835571,-749.35,0.00013698,2]
[353847060,1740091835581,-500.0,0.00013698,2]
[353847061,1740091835590,-500.0,0.00013698,2]
[353847062,1740091835599,-16707.96,0.00013698,2]
[353847063,1740091835609,-500.0,0.00013698,2]
[353847064,1740091835618,-500.0,0.00013698,2]
[353847065,1740091835628,-47582.77,0.00013698,2]
[353847066,1740091835637,-500.0,0.00013698,2]
[353847067,1740091835646,-500.0,0.00013698,2]
[353847068,1740091835655,-500.0,0.00013698,2]
[353847069,1740091835665,-504.22924463,0.00013698,2]
[353847070,1740091835674,-1419.31,0.00013698,2]
[353847071,1740091835684,-500.0,0.00013698,2]
[353847072,1740091835694,-500.0,0.00013698,2]
[353847073,1740091835704,-2371.63,0.00013698,2]
[353847074,1740091835713,-500.0,0.00013698,2]
[353847075,1740091835722,-3044.91,0.00013698,2]
[353847076,1740091835732,-1421.06,0.00013698,2]
[353847077,1740091835741,-500.0,0.00013698,2]
[353847078,1740091835750,-500.0,0.00013698,2]
[353847079,1740091835760,-500.0,0.00013698,2]
[353847080,1740091835769,-1981.43,0.00013698,2]
[353847081,1740091835778,-1485.07,0.00013698,2]
[353847082,1740091835787,-346.05727118,0.00013698,2]
[353847083,1740091835797,-500.0,0.00013698,2]
[353847084,1740091835806,-500.0,0.00013698,2]
[353847085,1740091835816,-500.0,0.00013698,2]
[353847086,1740091835827,-4309.84,0.00013698,2]
[353847087,1740091835836,-500.0,0.00013698,2]
[353847088,1740091835847,-500.0,0.00013698,2]
[353847089,1740091835866,-500.0,0.00013698,2]
[353847090,1740091835875,-1231.32,0.00013698,2]
[353847091,1740091835884,-1231.32,0.00013698,2]
[353847092,1740091835893,-1231.32,0.00013698,2]
[353847093,1740091835903,-1231.32,0.00013698,2]
[353847094,1740091835911,-1231.32,0.00013698,2]
[353847095,1740091835921,-1231.32,0.00013698,2]
[353847096,1740091835930,-1231.32,0.00013698,2]
[353847097,1740091835939,-1231.32,0.00013698,2]
[353847098,1740091835949,-1231.32,0.00013698,2]
[353847099,1740091835958,-1231.32,0.00013698,2]
[353847100,1740091835967,-1231.32,0.00013698,2]
[353847101,1740091835976,-1231.32,0.00013698,2]
[353847102,1740091835986,-1231.32,0.00013698,2]
[353847103,1740091835995,-1231.32,0.00013698,2]
[353847104,1740091836004,-1231.32,0.00013698,2]
[353847105,1740091836014,-1231.32,0.00013698,2]
[353847106,1740091836023,-1231.32,0.00013698,2]
[353847107,1740091836032,-1231.32,0.00013698,2]
[353847108,1740091836041,-1231.32,0.00013698,2]
[353847109,1740091836051,-846.65184922,0.00013698,2]
[353847110,1740091836071,-1004.25000015,0.00013698,2]
[353847111,1740091836174,-6677.85815063,0.00013698,2]
[353847112,1740091836183,-500.0,0.00013698,2]
[353847113,1740091836192,-630.65,0.00013698,2]
[353847114,1740091836202,-231.24429553,0.00013698,2]
[353847115,1740091836211,-500.0,0.00013698,2]
[353847116,1740091836220,-500.0,0.00013698,2]
[353847117,1740091836229,-500.0,0.00013698,2]
[353847118,1740091836239,-500.0,0.00013698,2]
[353847119,1740091836252,-506.4,0.00013698,2]
[353847120,1740091836262,-500.0,0.00013698,2]
[353847121,1740091836271,-500.0,0.00013698,2]
[353847122,1740091836280,-870.67583257,0.00013698,2]
[353847123,1740091836292,-202.46416743,0.00013698,2]
[353847124,1740091836301,-4317.45,0.00013698,2]
[353847125,1740091836311,-500.0,0.00013698,2]
[353847126,1740091836320,-500.0,0.00013698,2]
[353847127,1740091836330,-2449.34,0.00013698,2]
[353847128,1740091836339,-500.0,0.00013698,2]
[353847129,1740091836349,-500.0,0.00013698,2]
[353847130,1740091836358,-1506.63,0.00013698,2]
[353847131,1740091836368,-601.98,0.00013698,2]
[353847132,1740091836377,-4294.1,0.00013698,2]
[353847133,1740091836387,-500.0,0.00013698,2]
[353847134,1740091836396,-500.0,0.00013698,2]
[353847135,1740091836406,-645.96,0.00013698,2]
[353847136,1740091836415,-500.0,0.00013698,2]
[353847137,1740091836424,-500.0,0.00013698,2]
[353847138,1740091836433,-500.0,0.00013698,2]
[353847139,1740091836443,-504.73967674,0.00013698,2]
[353847140,1740091836452,-744.2,0.00013698,2]
[353847141,1740091836543,-1264.16,0.00013698,2]
[353847142,1740091836563,-500.0,0.00013698,2]
[353847143,1740091836573,-500.0,0.00013698,2]
[353847144,1740091836582,-1017.94,0.00013698,2]
[353847145,1740091836591,-500.0,0.00013698,2]
[353847146,1740091836601,-671.35,0.00013698,2]
[353847147,1740091836610,-500.0,0.00013698,2]
[353847148,1740091836619,-500.0,0.00013698,2]
[353847149,1740091836628,-500.0,0.00013698,2]
[353847150,1740091836637,-2214.99,0.00013698,2]
[353847151,1740091836646,-500.0,0.00013698,2]
[353847152,1740091836656,-501.13933607,0.00013698,2]
[353847153,1740091836665,-500.0,0.00013698,2]
[353847154,1740091836675,-707.81,0.00013698,2]
[353847155,1740091836684,-500.0,0.00013698,2]
[353847156,1740091836693,-490.51984356,0.00013698,2]
[353847157,1740091836702,-500.0,0.00013698,2]
[353847158,1740091836711,-500.0,0.00013698,2]
[353847159,1740091836721,-500.0,0.00013698,2]
[353847160,1740091836731,-360.2994036,0.00013698,2]
[353847161,1740091836743,-139.7005964,0.00013698,2]
[353847162,1740091836752,-414.4494036,0.00013698,2]
[353847163,1740091836764,-85.5505964,0.00013698,2]
[353847164,1740091836773,-500.0,0.00013698,2]
[353847165,1740091836782,-2494.82,0.00013698,2]
[353847166,1740091836791,-2395.75,0.00013698,2]
[353847167,1740091836799,-191.66162956,0.00013698,2]
[353847168,1740091836808,-500.0,0.00013698,2]
[353847169,1740091836818,-605.1,0.00013698,2]
[353847170,1740091836827,-500.0,0.00013698,2]
[353847171,1740091836836,-20855.28,0.00013698,2]
[353847172,1740091836846,-500.0,0.00013698,2]
[353847173,1740091836860,-899.23,0.00013698,2]
[353847174,1740091836869,-2809.02,0.00013698,2]
[353847175,1740091836878,-500.0,0.00013698,2]
[353847176,1740091836887,-500.0,0.00013698,2]
[353847177,1740091836898,-500.0,0.00013698,2]
[353847178,1740091836907,-503.68999931,0.00013698,2]
[353847179,1740091836917,-6937.4,0.00013698,2]
[353847180,1740091836927,-500.0,0.00013698,2]
[353847181,1740091836936,-500.0,0.00013698,2]
[353847182,1740091836948,-2444.33,0.00013698,2]
[353847183,1740091836959,-2173.53,0.00013698,2]
[353847184,1740091836968,-500.0,0.00013698,2]
[353847185,1740091836977,-500.0,0.00013698,2]
[353847186,1740091836986,-1014.97,0.00013698,2]
[353847187,1740091836995,-1014.97,0.00013698,2]
[353847188,1740091837004,-1014.97,0.00013698,2]
[353847189,1740091837013,-500.0,0.00013698,2]
[353847190,1740091837022,-1014.97,0.00013698,2]
[353847191,1740091837032,-1014.97,0.00013698,2]
[353847192,1740091837041,-1014.97,0.00013698,2]
[353847193,1740091837051,-1014.97,0.00013698,2]
[353847194,1740091837060,-1014.97,0.00013698,2]
[353847195,1740091837069,-1014.97,0.00013698,2]
[353847196,1740091837079,-1014.97,0.00013698,2]
[353847197,1740091837088,-1014.97,0.00013698,2]
[353847198,1740091837097,-500.0,0.00013698,2]
[353847199,1740091837106,-1014.97,0.00013698,2]
[353847200,1740091837115,-1014.97,0.00013698,2]
[353847201,1740091837125,-1014.97,0.00013698,2]
[353847202,1740091837134,-1014.97,0.00013698,2]
[353847203,1740091837143,-1014.97,0.00013698,2]
[353847204,1740091837153,-1014.97,0.00013698,2]
[353847205,1740091837163,-1014.97,0.00013698,2]
[353847206,1740091837172,-1014.97,0.00013698,2]
[353847207,1740091837181,-1014.97,0.00013698,2]
[353847208,1740091837191,-1014.97,0.00013698,2]
[353847209,1740091837200,-500.0,0.00013698,2]
[353847210,1740091837209,-1014.97,0.00013698,2]
[353847211,1740091837219,-1014.97,0.00013698,2]
[353847212,1740091837229,-1015.01499237,0.00013698,2]
[353847213,1740091837238,-656.62,0.00013698,2]
[353847214,1740091837248,-477.76868699,0.00013698,2]
[353847215,1740091837258,-1073.43,0.00013698,2]
[353847216,1740091837268,-500.0,0.00013698,2]
[353847217,1740091837278,-500.0,0.00013698,2]
[353847218,1740091837287,-500.0,0.00013698,2]
[353847219,1740091837296,-500.58334018,0.00013698,2]
[353847220,1740091837306,-500.0,0.00013698,2]
[353847221,1740091837315,-681.21,0.00013698,2]
[353847222,1740091837324,-500.0,0.00013698,2]
[353847223,1740091837333,-516.7,0.00013698,2]
[353847224,1740091837343,-2663.01,0.00013698,2]
[353847225,1740091837352,-376.45502869,0.00013698,2]
[353847226,1740091837361,-500.0,0.00013698,2]
[353847227,1740091837370,-500.0,0.00013698,2]
[353847228,1740091837380,-3692.28,0.00013698,2]
[353847229,1740091837389,-500.0,0.00013698,2]
[353847230,1740091837399,-500.0,0.00013698,2]
[353847231,1740091837408,-500.0,0.00013698,2]
[353847232,1740091837417,-2805.8449945,0.00013699,2]
[353847233,1740091837427,-202.772737,0.00013699,2]
[353847234,1740091837436,-500.0,0.00013699,2]
[353847235,1740091837445,-500.0,0.00013699,2]
[353847236,1740091837455,-500.0,0.00013699,2]
[353847237,1740091837464,-215.0,0.00013699,2]
[353847238,1740091837473,-500.0,0.00013699,2]
[353847239,1740091837482,-500.0,0.00013699,2]
[353847240,1740091837491,-500.0,0.00013699,2]
[353847241,1740091837500,-500.0,0.00013699,2]
[353847242,1740091837509,-500.0,0.00013699,2]
[353847243,1740091837518,-500.0,0.00013699,2]
[353847244,1740091837527,-500.0,0.00013699,2]
[353847245,1740091837536,-500.0,0.00013699,2]
[353847246,1740091837545,-151.0,0.000137,2]
[353847247,1740091837555,-151.0,0.000137,2]
[353847248,1740091837563,-151.0,0.000137,2]
[353847249,1740091837573,-151.0,0.000137,2]
[353847250,1740091837582,-1231.32,0.00013778,2]
[353847251,1740091837591,-1231.32,0.00013778,2]
[353847252,1740091837601,-1231.32,0.00013778,2]
[353847253,1740091837610,-1231.32,0.00013778,2]
[353847254,1740091837619,-1231.32,0.00013778,2]
[353847255,1740091837628,-500.0,0.00013779,2]
[353847256,1740091837637,-210.981736,0.00013779,2]
[353847257,1740091837647,-500.0,0.00013779,2]
[353847258,1740091837656,-184.55246902,0.00013779,2]
[353847259,1740091837665,-443.38722618,0.0001378,2]
[353847260,1740091837675,-500.0,0.0001378,2]
[353847261,1740091837684,-500.0,0.0001378,2]
[353847262,1740091837693,-500.0,0.0001378,2]
[353847263,1740091837702,-500.0,0.0001378,2]
[353847264,1740091837711,-500.0,0.0001378,2]
[353847265,1740091837720,-500.0,0.0001378,2]
[353847266,1740091837729,-500.0,0.0001378,2]
[353847267,1740091837738,-500.0,0.0001378,2]
[353847268,1740091837747,-628.05162628,0.0001378,2]
[353847269,1740091837756,-500.0,0.0001378,2]
[353847270,1740091837765,-500.0,0.0001378,2]
[353847271,1740091837774,-500.0,0.0001378,2]
[353847272,1740091837784,-500.0,0.0001378,2]
[353847273,1740091837793,-500.0,0.0001378,2]
[353847274,1740091837802,-500.0,0.0001378,2]
[353847275,1740091837811,-686.68,0.0001378,2]
[353847276,1740091837819,-500.0,0.0001378,2]
[353847277,1740091837828,-500.0,0.0001378,2]
[353847278,1740091837837,-671.74,0.0001378,2]
[353847279,1740091837849,-500.0,0.0001378,2]
[353847280,1740091837861,-629.29682315,0.0001378,2]
[353847281,1740091837870,-500.0,0.0001378,2]
[353847282,1740091837880,-233.43592483,0.0001378,2]
[353847283,1740091837890,-500.0,0.0001378,2]
[353847284,1740091837899,-500.0,0.0001378,2]
[353847285,1740091837909,-500.0,0.0001378,2]
[353847286,1740091837918,-500.0,0.0001378,2]
[353847287,1740091837928,-523.52717747,0.0001378,2]
[353847288,1740091837937,-500.0,0.0001378,2]
[353847289,1740091837946,-503.65758533,0.0001378,2]
[353847290,1740091837959,-500.0,0.0001378,2]
[353847291,1740091837967,-500.0,0.0001378,2]
[353847292,1740091837977,-500.0,0.0001378,2]
[353847293,1740091837986,-502.65058164,0.0001378,2]
[353847294,1740091837995,-500.0,0.0001378,2]
[353847295,1740091838004,-500.0,0.0001378,2]
[353847296,1740091838014,-500.0,0.0001378,2]
[353847297,1740091838023,-500.0,0.0001378,2]
[353847298,1740091838032,-1783.85,0.0001378,2]
[353847299,1740091838042,-500.0,0.0001378,2]
[353847300,1740091838051,-500.0,0.0001378,2]
[353847302,1740091838060,-500.0,0.0001378,2]
[353847303,1740091838069,-500.0,0.0001378,2]
[353847304,1740091838079,-862.2,0.0001378,2]
[353847306,1740091838088,-274.07904968,0.0001378,2]
[353847307,1740091838097,-500.0,0.0001378,2]
[353847308,1740091838106,-500.0,0.0001378,2]
[353847309,1740091838116,-500.0,0.0001378,2]
[353847310,1740091838124,-500.0,0.0001378,2]
[353847311,1740091838134,-1028.23,0.0001378,2]
[353847312,1740091838143,-1124.71,0.0001378,2]
[353847313,1740091838152,-500.0,0.0001378,2]
[353847314,1740091838161,-513.57758851,0.0001378,2]
[353847315,1740091838170,-500.0,0.0001378,2]
[353847316,1740091838180,-500.0,0.0001378,2]
[353847317,1740091838189,-707.15,0.0001378,2]
[353847318,1740091838197,-500.0,0.0001378,2]
[353847319,1740091838206,-500.0,0.0001378,2]
[353847320,1740091838216,-1000.0,0.0001378,2]
[353847321,1740091838225,-500.0,0.0001378,2]
[353847322,1740091838234,-775.53,0.0001378,2]
[353847323,1740091838243,-500.0,0.0001378,2]
[353847324,1740091838252,-500.0,0.0001378,2]
[353847325,1740091838261,-1370.18,0.0001378,2]
[353847327,1740091838271,-729.43,0.0001378,2]
[353847328,1740091838280,-500.0,0.0001378,2]
[353847329,1740091838289,-500.0,0.0001378,2]
[353847330,1740091838298,-500.0,0.0001378,2]
[353847331,1740091838307,-928.99,0.0001378,2]
[353847332,1740091838317,-500.0,0.0001378,2]
[353847333,1740091838325,-500.0,0.0001378,2]
[353847334,1740091838334,-1504.71,0.0001378,2]
[353847335,1740091838344,-721.69,0.0001378,2]
[353847336,1740091838353,-693.21,0.0001378,2]
[353847338,1740091838363,-369.48109363,0.0001378,2]
[353847340,1740091838371,-500.0,0.0001378,2]
[353847342,1740091838381,-500.39498571,0.0001378,2]
[353847344,1740091838390,-275.32529354,0.0001378,2]
[353847346,1740091838398,-500.0,0.0001378,2]
[353847348,1740091838408,-501.22711996,0.0001378,2]
[353847349,1740091838417,-500.0,0.0001378,2]
[353847352,1740091838426,-500.0,0.0001378,2]
[353847353,1740091838435,-500.0,0.0001378,2]
[353847355,1740091838445,-500.0,0.0001378,2]
[353847357,1740091838454,-500.0,0.0001378,2]
[353847359,1740091838463,-631.36,0.0001378,2]
[353847361,1740091838472,-1377.57,0.0001378,2]
[353847364,1740091838481,-500.0,0.0001378,2]
[353847365,1740091838490,-500.0,0.0001378,2]
[353847367,1740091838500,-555.94,0.0001378,2]
[353847369,1740091838510,-500.0,0.0001378,2]
[353847381,1740091838603,-1000.63,0.0001378,2]
[353847383,1740091838613,-500.0,0.0001378,2]
[353847385,1740091838622,-500.0,0.0001378,2]
[353847387,1740091838631,-500.0,0.0001378,2]
[353847389,1740091838641,-500.0,0.0001378,2]
[353847391,1740091838651,-500.0,0.0001378,2]
[353847393,1740091838660,-900.89,0.0001378,2]
[353847395,1740091838668,-500.0,0.0001378,2]
[353847397,1740091838678,-500.0,0.0001378,2]
[353847399,1740091838687,-664.48,0.0001378,2]
[353847401,1740091838696,-500.0,0.0001378,2]
[353847403,1740091838705,-500.0,0.0001378,2]
[353847405,1740091838714,-500.0,0.0001378,2]
[353847407,1740091838723,-500.0,0.0001378,2]
[353847409,1740091838733,-500.0,0.0001378,2]
[353847411,1740091838742,-500.0,0.0001378,2]
[353847413,1740091838751,-500.0,0.0001378,2]
[353847415,1740091838760,-601.74,0.0001378,2]
[353847417,1740091838769,-500.0,0.0001378,2]
[353847419,1740091838778,-500.0,0.0001378,2]
[353847421,1740091838787,-328.13450216,0.0001378,2]
[353847423,1740091838796,-546.38,0.0001378,2]
[353847425,1740091838805,-251.57735036,0.0001378,2]
[353847427,1740091838813,-500.0,0.0001378,2]
[353847429,1740091838823,-620.50429697,0.0001378,2]
[353847430,1740091838831,-500.0,0.0001378,2]
[353847432,1740091838841,-500.0,0.0001378,2]
[353847435,1740091838854,-507.75302254,0.0001378,2]
[353847438,1740091838864,-500.0,0.0001378,2]
[353847441,1740091838873,-4502.58,0.0001378,2]
[353847443,1740091838883,-500.0,0.0001378,2]
[353847446,1740091838892,-500.0,0.0001378,2]
[353847449,1740091838901,-886.79,0.0001378,2]
[353847451,1740091838910,-1849.94,0.0001378,2]
[353847454,1740091838919,-500.0,0.0001378,2]
[353847456,1740091838930,-1370.08,0.0001378,2]
[353847458,1740091838941,-500.0,0.0001378,2]
[353847460,1740091838950,-500.0,0.0001378,2]
[353847462,1740091838959,-1573.46,0.0001378,2]
[353847464,1740091838968,-749.35,0.0001378,2]
[353847466,1740091838978,-500.0,0.0001378,2]
[353847468,1740091838987,-16707.96,0.0001378,2]
[353847470,1740091838996,-500.0,0.0001378,2]
[353847472,1740091839005,-500.0,0.0001378,2]
[353847474,1740091839014,-47582.77,0.0001378,2]
[353847476,1740091839023,-500.0,0.0001378,2]
[353847478,1740091839033,-1419.31,0.0001378,2]
[353847480,1740091839042,-2371.63,0.0001378,2]
[353847482,1740091839051,-500.0,0.0001378,2]
[353847484,1740091839060,-3044.91,0.0001378,2]
[353847486,1740091839069,-1421.06,0.0001378,2]
[353847488,1740091839078,-500.0,0.0001378,2]
[353847490,1740091839087,-1981.43,0.0001378,2]
[353847492,1740091839096,-1485.07,0.0001378,2]
[353847495,1740091839106,-500.0,0.0001378,2]
[353847497,1740091839115,-4309.84,0.0001378,2]
[353847498,1740091839124,-500.0,0.0001378,2]
[353847500,1740091839133,-8528.76,0.0001378,2]
[353847502,1740091839142,-500.0,0.0001378,2]
[353847504,1740091839151,-630.65,0.0001378,2]
[353847506,1740091839160,-500.0,0.0001378,2]
[353847508,1740091839169,-506.4,0.0001378,2]
[353847510,1740091839178,-500.0,0.0001378,2]
[353847512,1740091839187,-500.0,0.0001378,2]
[353847514,1740091839196,-1073.14,0.0001378,2]
[353847516,1740091839205,-4317.45,0.0001378,2]
[353847518,1740091839215,-500.0,0.0001378,2]
[353847520,1740091839224,-2449.34,0.0001378,2]
[353847522,1740091839235,-500.0,0.0001378,2]
[353847525,1740091839245,-500.0,0.0001378,2]
[353847527,1740091839255,-1506.63,0.0001378,2]
[353847528,1740091839264,-601.98,0.0001378,2]
[353847530,1740091839274,-4294.1,0.0001378,2]
[353847532,1740091839284,-645.96,0.0001378,2]
[353847535,1740091839294,-500.0,0.0001378,2]
[353847536,1740091839304,-500.0,0.0001378,2]
[353847538,1740091839313,-744.2,0.0001378,2]
[353847541,1740091839323,-1264.16,0.0001378,2]
[353847543,1740091839332,-1017.94,0.0001378,2]
[353847544,1740091839341,-671.35,0.0001378,2]
[353847547,1740091839350,-500.0,0.0001378,2]
[353847549,1740091839359,-2214.99,0.0001378,2]
[353847551,1740091839369,-707.81,0.0001378,2]
[353847552,1740091839378,-500.0,0.0001378,2]
[353847555,1740091839388,-500.0,0.0001378,2]
[353847557,1740091839397,-500.0,0.0001378,2]
[353847559,1740091839407,-500.0,0.0001378,2]
[353847561,1740091839418,-500.0,0.0001378,2]
[353847563,1740091839427,-2494.82,0.0001378,2]
[353847565,1740091839436,-2395.75,0.0001378,2]
[353847567,1740091839445,-605.1,0.0001378,2]
[353847569,1740091839454,-500.0,0.0001378,2]
[353847571,1740091839463,-20855.28,0.0001378,2]
[353847573,1740091839472,-899.23,0.0001378,2]
[353847575,1740091839481,-2809.02,0.0001378,2]
[353847577,1740091839490,-500.0,0.0001378,2]
[353847579,1740091839499,-500.0,0.0001378,2]
[353847581,1740091839509,-6937.4,0.0001378,2]
[353847583,1740091839518,-500.0,0.0001378,2]
[353847585,1740091839527,-2444.33,0.0001378,2]
[353847587,1740091839536,-2173.53,0.0001378,2]
[353847589,1740091839544,-500.0,0.0001378,2]
[353847591,1740091839553,-500.63120117,0.0001378,2]
[353847592,1740091839562,-500.0,0.0001378,2]
[353847594,1740091839571,-656.62,0.0001378,2]
[353847596,1740091839581,-1073.43,0.0001378,2]
[353847598,1740091839588,-500.0,0.0001378,2]
[353847599,1740091839598,-500.0,0.0001378,2]
[353847601,1740091839607,-681.21,0.0001378,2]
[353847603,1740091839616,-500.0,0.0001378,2]
[353847605,1740091839625,-516.7,0.0001378,2]
[353847607,1740091839634,-2663.01,0.0001378,2]
[353847609,1740091839644,-500.0,0.0001378,2]
[353847611,1740091839653,-500.0,0.0001378,2]
[353847613,1740091839662,-3692.28,0.0001378,2]
[353847614,1740091839671,-500.0,0.0001378,2]
[353847616,1740091839681,-500.0,0.0001378,2]
[353847618,1740091839690,-300.0,0.000138,4]
[353847620,1740091839699,-151.0,0.000138,2]
[353847622,1740091839708,-151.0,0.000138,2]
[353847624,1740091839718,-151.0,0.000138,2]
[353847626,1740091839727,-151.0,0.000138,2]
[353847628,1740091839736,-151.0,0.000138,2]
[353847629,1740091839745,-151.0,0.000138,2]
[353847631,1740091839754,-364.8354735,0.000138,2]
[353847633,1740091839763,-500.0,0.00013863,2]
[353847635,1740091839773,-500.0,0.00013863,2]
[353847637,1740091839783,-500.0,0.00013863,2]
[353847639,1740091839792,-500.0,0.00013863,2]
[353847640,1740091839801,-500.0,0.00013863,2]
[353847642,1740091839810,-686.68,0.00013863,2]
[353847644,1740091839819,-500.0,0.00013863,2]
[353847646,1740091839828,-500.0,0.00013863,2]
[353847648,1740091839838,-671.74,0.00013863,2]
[353847650,1740091839848,-500.0,0.00013863,2]
[353847652,1740091839861,-500.0,0.00013863,2]
[353847654,1740091839870,-500.0,0.00013863,2]
[353847656,1740091839879,-1783.85,0.00013863,2]
[353847658,1740091839889,-500.0,0.00013863,2]
[353847659,1740091839898,-500.0,0.00013863,2]
[353847661,1740091839907,-500.0,0.00013863,2]
[353847663,1740091839916,-500.0,0.00013863,2]
[353847665,1740091839926,-862.2,0.00013863,2]
[353847667,1740091839936,-500.0,0.00013863,2]
[353847669,1740091839945,-500.0,0.00013863,2]
[353847671,1740091839954,-1028.23,0.00013863,2]
[353847672,1740091839963,-1124.71,0.00013863,2]
[353847674,1740091839973,-500.0,0.00013863,2]
[353847676,1740091839982,-500.0,0.00013863,2]
[353847678,1740091839991,-707.15,0.00013863,2]
[353847680,1740091840002,-500.0,0.00013863,2]
[353847682,1740091840011,-500.0,0.00013863,2]
[353847684,1740091840021,-1000.0,0.00013863,2]
[353847685,1740091840030,-775.53,0.00013863,2]
[353847687,1740091840039,-1370.18,0.00013863,2]
[353847689,1740091840048,-729.43,0.00013863,2]
[353847691,1740091840057,-500.0,0.00013863,2]
[353847693,1740091840067,-928.99,0.00013863,2]
[353847695,1740091840076,-500.0,0.00013863,2]
[353847697,1740091840085,-1504.71,0.00013863,2]
[353847698,1740091840095,-721.69,0.00013863,2]
[353847700,1740091840104,-693.21,0.00013863,2]